fUSD/lending_fUSD_20240201
["ID","MTS","AMOUNT","RATE_DAILY","PERIOD"]
[313139561,1706797839191,-49641.46998144,0.00034721,10]
[313139562,1706797839201,-5784.83636935,0.00034721,10]
[313139563,1706797839211,-3762.26764381,0.00034721,10]
[313139564,1706797839220,-1061.74793901,0.00034767,7]
[313139565,1706797839230,-677.19156385,0.000349,2]
[313139566,1706797839240,-677.19156371,0.000349,2]
[313139567,1706797839249,-677.19156371,0.000349,2]
[313139568,1706797839258,-677.19156371,0.000349,2]
[313139569,1706797839270,-677.19156371,0.000349,2]
[313139570,1706797839279,-677.19156371,0.000349,2]
[313139571,1706797839289,-677.19156371,0.000349,2]
[313139572,1706797839298,-677.19156371,0.000349,2]
[313139573,1706797839309,-450.0,0.00034914,6]
[313139574,1706797839318,-1367.89315086,0.00034914,6]
[313139575,1706797839327,-155.0,0.00035,2]
[313139576,1706797839336,-3000.0,0.00035,2]
[313139577,1706797839346,-156.43179662,0.00035,4]
[313139578,1706797839355,-500.0,0.00035,30]
[313139579,1706797839364,-1716.78142956,0.00035,4]
[313139580,1706797839374,-677.19156371,0.00035299,2]
[313139581,1706797839382,-173.95,0.000357,7]
[313139582,1706797839392,-159.52,0.00035706,2]
[313139583,1706797839401,-301.59893523,0.00036,4]
[313139584,1706797839410,-1807.32,0.00036182,5]
[313139585,1706797839420,-159.81,0.000362,7]
[313139586,1706797839430,-1000.0,0.00036755,2]
[313139587,1706797839439,-199.10754214,0.00036784,2]
[313139588,1706797839449,-677.19156371,0.00036878,2]
[313139589,1706797839458,-312.46646689,0.00037,4]
[313139590,1706797839468,-967.72840203,0.00037149,10]
[313139591,1706797839477,-4926.41345739,0.00037495,2]
[313139592,1706797839487,-2210.15969125,0.000375,4]
[313139593,1706797839496,-150.0,0.00037511,7]
[313139594,1706797839506,-1450.0,0.00037511,7]
[313139595,1706797839515,-207.0,0.00037682,21]
[313139596,1706797839524,-172.40484004,0.00037897,2]
[313139597,1706797839534,-176.11736143,0.00037899,2]
[313139598,1706797839543,-2500.0,0.000379,13]
[313139599,1706797839552,-675181.594717,0.000379,2]
[313139600,1706797839564,-4516.98854585,0.000379,7]
[313139601,1706797839573,-601.75,0.00037964,2]
[313139602,1706797839583,-605.61,0.00037964,2]
[313139603,1706797839591,-503.93397822,0.00038356,4]
[313139604,1706797839601,-176.75866955,0.00038356,4]
[313139605,1706797839610,-500.0,0.00038356,15]
[313139606,1706797839619,-531.35536391,0.00038356,4]
[313139607,1706797839629,-640.41512989,0.00038356,4]
[313139608,1706797839638,-516.55878581,0.00038356,4]
[313139609,1706797839648,-500.0,0.00038356,4]
[313139610,1706797839657,-527.87789072,0.00038356,4]
[313139611,1706797839667,-237.88015844,0.00038356,2]
[313139612,1706797839677,-327.56134791,0.00038356,4]
[313139613,1706797839687,-500.0,0.00038356,4]
[313139614,1706797839697,-500.0,0.00038356,4]
[313139615,1706797839707,-500.0,0.00038356,4]
[313139616,1706797839717,-500.0,0.00038356,4]
[313139617,1706797839726,-500.0,0.00038356,4]
[313139618,1706797839736,-500.0,0.00038356,4]
[313139619,1706797839746,-500.0,0.00038356,4]
[313139620,1706797839756,-1006.6,0.00038356,4]
[313139621,1706797839766,-500.0,0.00038356,4]
[313139622,1706797839777,-637.39,0.00038356,4]
[313139623,1706797839787,-500.0,0.00038356,4]
[313139624,1706797839796,-500.0,0.00038356,4]
[313139625,1706797839809,-500.0,0.00038356,4]
[313139626,1706797839819,-500.0,0.00038356,4]
[313139627,1706797839829,-500.0,0.00038356,4]
[313139628,1706797839839,-500.0,0.00038356,4]
[313139629,1706797839848,-500.0,0.00038356,4]
[313139630,1706797839858,-500.0,0.00038356,4]
[313139631,1706797839867,-500.0,0.00038356,4]
[313139632,1706797839877,-500.0,0.00038356,4]
[313139633,1706797839886,-529.70486808,0.00038356,4]
[313139634,1706797839896,-500.0,0.00038356,4]
[313139635,1706797839906,-500.0,0.00038356,4]
[313139636,1706797839916,-500.0,0.00038356,4]
[313139637,1706797839926,-500.0,0.00038356,4]
[313139638,1706797839936,-598.27,0.00038356,4]
[313139639,1706797839946,-500.0,0.00038356,4]
[313139640,1706797839957,-500.0,0.00038356,4]
[313139641,1706797839968,-500.0,0.00038356,4]
[313139642,1706797839980,-500.0,0.00038356,4]
[313139643,1706797839991,-500.0,0.00038356,5]
[313139644,1706797840002,-500.0,0.00038356,4]
[313139645,1706797840012,-500.0,0.00038356,4]
[313139646,1706797840022,-500.0,0.00038356,4]
[313139647,1706797840033,-500.0,0.00038356,4]
[313139648,1706797840043,-500.0,0.00038356,4]
[313139649,1706797840053,-500.0,0.00038356,4]
[313139650,1706797840064,-500.0,0.00038356,4]
[313139651,1706797840072,-500.0,0.00038356,4]
[313139652,1706797840082,-500.0,0.00038356,4]
[313139653,1706797840091,-500.0,0.00038356,4]
[313139654,1706797840101,-500.0,0.00038356,4]
[313139655,1706797840110,-500.0,0.00038356,4]
[313139656,1706797840120,-500.0,0.00038356,4]
[313139657,1706797840129,-500.0,0.00038356,4]
[313139658,1706797840138,-416.11627193,0.00038356,4]
[313139659,1706797840149,-500.0,0.00038356,4]
[313139660,1706797840158,-500.0,0.00038356,4]
[313139662,1706797840169,-607.11,0.00038356,4]
[313139663,1706797840180,-500.0,0.00038356,4]
[313139664,1706797840188,-500.0,0.00038356,4]
[313139665,1706797840198,-500.0,0.00038356,4]
[313139666,1706797840207,-500.0,0.00038356,4]
[313139668,1706797840218,-500.0,0.00038356,4]
[313139670,1706797840228,-500.0,0.00038356,4]
[313139672,1706797840237,-500.0,0.00038356,4]
[313139674,1706797840247,-500.0,0.00038356,4]
[313139676,1706797840258,-500.0,0.00038356,4]
[313139678,1706797840268,-632.43,0.00038356,4]
[313139679,1706797840284,-500.0,0.00038356,4]
[313139680,1706797840294,-500.0,0.00038356,4]
[313139681,1706797840304,-500.0,0.00038356,2]
[313139682,1706797840318,-500.0,0.00038356,4]
[313139683,1706797840329,-627.4,0.00038356,4]
[313139685,1706797840339,-500.0,0.00038356,4]
[313139687,1706797840349,-500.0,0.00038356,4]
[313139689,1706797840359,-500.0,0.00038356,4]
[313139691,1706797840369,-500.0,0.00038356,4]
[313139693,1706797840379,-500.0,0.00038356,4]
[313139694,1706797840388,-677.19156371,0.00038456,2]
[313139696,1706797840398,-9724.55247003,0.000388,4]
[313139697,1706797840408,-1061.74793901,0.00038801,9]
[313139698,1706797840417,-155.25629653,0.00038899,2]
[313139699,1706797840427,-561.95,0.00038904,4]
[313139700,1706797840437,-500.0,0.00038904,4]
[313139701,1706797840446,-311.35,0.00038904,4]
[313139702,1706797840455,-1006.6,0.00038904,4]
[313139703,1706797840464,-426.86,0.00038904,4]
[313139704,1706797840474,-500.0,0.00038904,4]
[313139705,1706797840486,-500.0,0.00038904,4]
[313139706,1706797840496,-500.0,0.00038904,4]
[313139707,1706797840505,-247.18,0.00038904,4]
[313139708,1706797840514,-500.0,0.00038904,4]
[313139709,1706797840523,-598.27,0.00038904,4]
[313139710,1706797840532,-346.79,0.00038904,4]
[313139711,1706797840541,-446.72,0.00038904,4]
[313139712,1706797840551,-500.0,0.00038904,4]
[313139713,1706797840563,-500.0,0.00038904,5]
[313139714,1706797840572,-500.0,0.00038904,4]
[313139715,1706797840582,-500.0,0.00038904,4]
[313139716,1706797840591,-500.0,0.00038904,4]
[313139717,1706797840600,-500.0,0.00038904,4]
[313139718,1706797840609,-500.0,0.00038904,4]
[313139719,1706797840619,-500.0,0.00038904,4]
[313139720,1706797840628,-244.74,0.00038904,4]
[313139721,1706797840637,-500.0,0.00038904,4]
[313139722,1706797840646,-500.0,0.00038904,4]
[313139723,1706797840655,-245.35,0.00038904,4]
[313139724,1706797840664,-500.0,0.00038904,4]
[313139725,1706797840674,-637.91,0.00038904,4]
[313139726,1706797840683,-500.0,0.00038904,4]
[313139727,1706797840692,-483.72,0.00038904,4]
[313139728,1706797840702,-500.0,0.00038904,4]
[313139729,1706797840711,-500.0,0.00038904,4]
[313139730,1706797840720,-249.84,0.00038904,4]
[313139731,1706797840730,-500.0,0.00038904,4]
[313139732,1706797840738,-500.0,0.00038904,4]
[313139733,1706797840747,-500.0,0.00038904,4]
[313139734,1706797840757,-500.0,0.00038904,4]
[313139735,1706797840767,-282.85165656,0.0003898,2]
[313139736,1706797840777,-979.21252284,0.00039,4]
[313139737,1706797840786,-622.13966153,0.00039,4]
[313139738,1706797840796,-634.97954655,0.00039,4]
[313139739,1706797840805,-1432.91116415,0.00039,2]
[313139740,1706797840816,-220.46095402,0.00039,5]
[313139741,1706797840825,-159.11024416,0.00039,40]
[313139742,1706797840836,-150.0,0.00039056,2]
[313139743,1706797840846,-151.26804,0.00039056,2]
[313139744,1706797840856,-160.48,0.0003926,2]
[313139745,1706797840864,-565.23,0.00039452,4]
[313139746,1706797840882,-1006.6,0.00039452,4]
[313139747,1706797840894,-500.0,0.00039452,4]
[313139748,1706797840906,-300.69,0.00039452,4]
[313139749,1706797840917,-500.0,0.00039452,4]
[313139750,1706797840929,-500.0,0.00039452,4]
[313139751,1706797840941,-598.27,0.00039452,4]
[313139752,1706797840951,-500.0,0.00039452,4]
[313139753,1706797840963,-415.94,0.00039452,5]
[313139754,1706797840974,-168.9,0.00039452,4]
[313139755,1706797840985,-500.0,0.00039452,4]
[313139756,1706797840995,-500.0,0.00039452,4]
[313139757,1706797841006,-579.57686104,0.00039452,4]
[313139758,1706797841015,-500.0,0.00039452,4]
[313139759,1706797841025,-328.7877144,0.00039452,4]
[313139760,1706797841035,-500.0,0.00039452,4]
[313139761,1706797841046,-500.0,0.00039452,4]
[313139762,1706797841056,-500.0,0.00039452,4]
[313139763,1706797841068,-500.0,0.00039452,4]
[313139764,1706797841078,-292.32,0.00039452,4]
[313139765,1706797841089,-500.0,0.00039452,4]
[313139766,1706797841100,-500.0,0.00039452,4]
[313139767,1706797841110,-500.0,0.00039452,4]
[313139768,1706797841122,-500.0,0.00039452,4]
[313139769,1706797841133,-500.0,0.00039452,4]
[313139770,1706797841144,-1110.17410498,0.00039529,30]
[313139771,1706797841155,-6867.24557167,0.00039563,2]
[313139772,1706797841166,-159.52,0.00039616,2]
[313139773,1706797841178,-7532.41841045,0.0004,4]
[313139774,1706797841190,-1086.42022373,0.0004,10]
[313139775,1706797841202,-5000.0,0.0004,30]
[313139776,1706797841212,-1233.45264282,0.0004,30]
[313139777,1706797841223,-20800.59524066,0.0004,15]
[313139778,1706797841234,-155.0,0.0004,2]
[313139779,1706797841246,-1006.6,0.0004,4]
[313139780,1706797841256,-180.70049301,0.0004,2]
[313139781,1706797841267,-238.22,0.0004,4]
[313139782,1706797841277,-662.78112152,0.0004,20]
[313139783,1706797841287,-500.0,0.0004,4]
[313139784,1706797841296,-289.45993262,0.0004,4]
[313139785,1706797841307,-2687.9565213,0.0004,4]
[313139786,1706797841319,-500.0,0.0004,4]
[313139787,1706797841330,-598.27,0.0004,4]
[313139788,1706797841342,-500.0,0.0004,4]
[313139789,1706797841352,-500.0,0.0004,4]
[313139790,1706797841363,-155.46402715,0.0004,4]
[313139791,1706797841374,-238.6446,0.0004,4]
[313139792,1706797841384,-500.0,0.0004,4]
[313139793,1706797841396,-500.0,0.0004,4]
[313139794,1706797841408,-500.0,0.0004,4]
[313139795,1706797841420,-812.45294671,0.0004,4]
[313139796,1706797841431,-500.0,0.0004,4]
[313139797,1706797841441,-210.66146337,0.0004,4]
[313139798,1706797841452,-500.0,0.0004,4]
[313139799,1706797841464,-22139.51286368,0.0004,4]
[313139800,1706797841474,-500.0,0.0004,4]
[313139801,1706797841486,-211.00341506,0.0004,4]
[313139802,1706797841496,-500.0,0.0004,4]
[313139803,1706797841507,-500.0,0.0004,4]
[313139804,1706797841518,-500.0,0.0004,4]
[313139805,1706797841529,-677.19156371,0.00040035,5]
[313139806,1706797841539,-1000.0,0.00040097,2]
[313139807,1706797841549,-1006.6,0.00040547,4]
[313139808,1706797841561,-421.05,0.00040547,4]
[313139809,1706797841571,-500.0,0.00040547,4]
[313139810,1706797841582,-598.27,0.00040547,4]
[313139811,1706797841592,-500.0,0.00040547,4]
[313139812,1706797841606,-500.0,0.00040547,4]
[313139813,1706797841618,-500.0,0.00040547,4]
[313139814,1706797841629,-500.0,0.00040547,4]
[313139815,1706797841640,-500.0,0.00040547,4]
[313139816,1706797841649,-500.0,0.00040547,4]
[313139817,1706797841660,-500.0,0.00040547,4]
[313139818,1706797841671,-500.0,0.00040547,4]
[313139819,1706797841682,-500.0,0.00040547,4]
[313139820,1706797841694,-500.0,0.00040547,4]
[313139821,1706797841705,-500.0,0.00040547,4]
[313139822,1706797841716,-160.48,0.00040733,2]
[313139823,1706797841727,-800.0,0.00041,2]
[313139824,1706797841738,-1006.6,0.00041095,4]
[313139825,1706797841749,-500.0,0.00041095,4]
[313139826,1706797841759,-598.27,0.00041095,4]
[313139827,1706797841769,-500.0,0.00041095,4]
[313139828,1706797841782,-500.0,0.00041095,4]
[313139829,1706797841792,-500.0,0.00041095,4]
[313139830,1706797841802,-500.0,0.00041095,4]
[313139831,1706797841814,-500.0,0.00041095,4]
[313139832,1706797841824,-327.45230344,0.00041095,4]
[313139833,1706797841835,-500.0,0.00041095,4]
[313139834,1706797841846,-231.6348275,0.00041095,4]
[313139835,1706797841858,-1000.0,0.00041095,30]
[313139836,1706797841871,-1000.0,0.00041095,30]
[313139837,1706797841882,-1000.0,0.00041095,30]
[313139838,1706797841893,-1000.0,0.00041095,30]
[313139839,1706797841903,-1000.0,0.00041095,30]
[313139840,1706797841914,-276.97151803,0.00041095,30]
[313139841,1706797841925,-500.0,0.00041095,4]
[313139842,1706797841936,-500.0,0.00041095,4]
[313139843,1706797841947,-500.0,0.00041095,4]
[313139844,1706797841957,-150.0,0.00041096,2]
[313139845,1706797841968,-179.5,0.00041096,2]
[313139846,1706797841978,-200.0,0.00041491,9]
[313139847,1706797841989,-184.29365455,0.00041522,4]
[313139848,1706797841998,-677.19156371,0.00041614,5]
[313139849,1706797842008,-1006.6,0.00041643,4]
[313139850,1706797842018,-500.0,0.00041643,4]
[313139851,1706797842029,-598.27,0.00041643,4]
[313139852,1706797842039,-500.0,0.00041643,4]
[313139853,1706797842049,-500.0,0.00041643,4]
[313139854,1706797842059,-500.0,0.00041643,4]
[313139855,1706797842070,-500.0,0.00041643,4]
[313139856,1706797842080,-500.0,0.00041643,4]
[313139857,1706797842090,-500.0,0.00041643,4]
[313139858,1706797842102,-555.09640042,0.00041643,4]
[313139859,1706797842113,-500.0,0.00041643,4]
[313139860,1706797842122,-500.0,0.00041643,4]
[313139861,1706797842132,-150.0,0.00042177,2]
[313139862,1706797842144,-1006.6,0.00042191,4]
[313139863,1706797842154,-500.0,0.00042191,4]
[313139864,1706797842164,-598.27,0.00042191,4]
[313139865,1706797842179,-500.0,0.00042191,4]
[313139866,1706797842190,-500.0,0.00042191,4]
[313139867,1706797842202,-500.0,0.00042191,4]
[313139868,1706797842214,-500.0,0.00042191,4]
[313139869,1706797842225,-508.04181396,0.00042191,4]
[313139870,1706797842235,-486.26765603,0.00042191,4]
[313139871,1706797842245,-500.0,0.00042191,4]
[313139872,1706797842255,-500.0,0.00042191,4]
[313139873,1706797842267,-160.48,0.00042205,2]
[313139874,1706797842277,-336.0,0.000423,7]
[313139875,1706797842287,-1684.314588,0.00042331,30]
[313139876,1706797842297,-3255.0,0.00042331,120]
[313139877,1706797842308,-3281.81248116,0.000426,120]
[313139878,1706797842320,-1006.6,0.00042739,4]
[313139879,1706797842329,-500.0,0.00042739,4]
[313139880,1706797842340,-598.27,0.00042739,4]
[313139881,1706797842350,-494.9064,0.00042739,4]
[313139882,1706797842360,-500.0,0.00042739,4]
[313139883,1706797842371,-500.0,0.00042739,4]
[313139884,1706797842381,-500.0,0.00042739,4]
[313139885,1706797842392,-500.0,0.00042739,4]
[313139886,1706797842402,-500.0,0.00042739,4]
[313139887,1706797842412,-1061.74793901,0.00042834,11]
[313139888,1706797842422,-569.96688265,0.00043,30]
[313139889,1706797842432,-151.0,0.00043003,2]
[313139890,1706797842442,-677.19156371,0.00043193,5]
[313139891,1706797842451,-150.0,0.00043259,2]
[313139892,1706797842461,-207.0,0.00043262,31]
[313139893,1706797842471,-1006.6,0.00043287,4]
[313139894,1706797842481,-500.0,0.00043287,4]
[313139895,1706797842491,-598.27,0.00043287,4]
[313139896,1706797842502,-500.0,0.00043287,4]
[313139897,1706797842512,-500.0,0.00043287,4]
[313139898,1706797842522,-500.0,0.00043287,4]
[313139899,1706797842532,-500.0,0.00043287,4]
[313139900,1706797842542,-621.9333488,0.00043287,4]
[313139902,1706797842552,-394.69875275,0.000433,30]
[313139903,1706797842564,-336.0,0.000434,7]
[313139905,1706797842573,-159.52,0.00043527,2]
[313139906,1706797842584,-160.48,0.00043677,2]
[313139907,1706797842594,-442.0,0.0004369,2]
[313139908,1706797842604,-309.0,0.0004369,2]
[313139909,1706797842614,-6143.1891384,0.000438,2]
[313139910,1706797842624,-1006.6,0.00043835,4]
[313139911,1706797842634,-500.0,0.00043835,4]
[313139912,1706797842645,-598.27,0.00043835,4]
[313139913,1706797842655,-500.0,0.00043835,4]
[313139914,1706797842664,-500.0,0.00043835,4]
[313139915,1706797842674,-500.0,0.00043835,4]
[313139916,1706797842685,-666.0,0.00043835,2]
[313139917,1706797842697,-500.0,0.00043835,4]
[313139918,1706797842707,-1245.33,0.00043836,15]
[313139919,1706797842717,-241.08496746,0.00044,6]
[313139920,1706797842727,-289.5366055,0.00044,30]
[313139921,1706797842736,-155.25629653,0.00044233,22]
[313139922,1706797842746,-967.72840203,0.00044275,19]
[313139923,1706797842758,-200.0,0.00044277,10]
[313139924,1706797842767,-150.0,0.0004434,2]
[313139925,1706797842778,-282.34113377,0.00044382,38]
[313139926,1706797842788,-1006.6,0.00044383,4]
[313139927,1706797842798,-500.0,0.00044383,4]
[313139928,1706797842808,-598.27,0.00044383,4]
[313139929,1706797842819,-500.0,0.00044383,4]
[313139930,1706797842829,-500.0,0.00044383,4]
[313139931,1706797842839,-500.0,0.00044383,4]
[313139932,1706797842849,-550.54215636,0.00044383,4]
[313139933,1706797842859,-279.45489081,0.000444,2]
[313139934,1706797842868,-336.0,0.000445,7]
[313139935,1706797842878,-766.0,0.00044534,7]
[313139937,1706797842888,-1000.0,0.000447,2]
[313139938,1706797842898,-677.19156371,0.00044772,5]
[313139939,1706797842908,-196.0,0.0004489,2]
[313139940,1706797842919,-2000.0,0.000449,2]
[313139941,1706797842929,-251.0,0.000449,2]
[313139942,1706797842939,-475.73398796,0.000449,2]
[313139944,1706797842949,-3151.76506286,0.000449,30]
[313139946,1706797842960,-1006.6,0.00044931,4]
[313139948,1706797842970,-500.0,0.00044931,4]
[313139950,1706797842980,-598.27,0.00044931,4]
[313139952,1706797842990,-500.0,0.00044931,4]
[313139954,1706797843000,-500.0,0.00044931,4]
[313139956,1706797843010,-500.0,0.00044931,4]
[313139959,1706797843020,-557.0,0.0004499,2]
[313139961,1706797843030,-585.0,0.0004499,2]
[313139963,1706797843041,-150.0,0.00044999,15]
[313139965,1706797843051,-150.0,0.00044999,15]
[313139967,1706797843060,-1000.0,0.00045,13]
[313139969,1706797843072,-949.07283148,0.00045,30]
[313139971,1706797843081,-5042.78990262,0.00045,30]
[313139973,1706797843091,-3955.0,0.00045,45]
[313139975,1706797843101,-675.0,0.00045,45]
[313139977,1706797843111,-726.0,0.00045,45]
[313139979,1706797843121,-1422.0,0.00045,2]
[313139981,1706797843130,-10213.0,0.00045,2]
[313139983,1706797843140,-160.48,0.00045149,2]
[313139985,1706797843150,-248.94,0.000452,7]
[313139987,1706797843159,-150.0,0.00045422,2]
[313139989,1706797843171,-1006.6,0.00045479,4]
[313139991,1706797843183,-500.0,0.00045479,4]
[313139993,1706797843194,-598.27,0.00045479,4]
[313139995,1706797843204,-500.0,0.00045479,4]
[313139997,1706797843213,-500.0,0.00045479,4]
[313139999,1706797843224,-500.0,0.00045479,4]
[313140001,1706797843233,-336.0,0.000456,30]
[313140003,1706797843243,-5000.0,0.00045621,4]
[313140005,1706797843254,-666.0,0.0004589,2]
[313140007,1706797843264,-500.0,0.00046,2]
[313140008,1706797843275,-3954.0,0.00046,45]
[313140009,1706797843284,-675.0,0.00046,45]
[313140010,1706797843294,-726.0,0.00046,45]
[313140011,1706797843304,-1006.6,0.00046027,4]
[313140012,1706797843315,-500.0,0.00046027,4]
[313140013,1706797843326,-598.27,0.00046027,4]
[313140014,1706797843336,-500.0,0.00046027,4]
[313140015,1706797843346,-500.0,0.00046027,4]
[313140016,1706797843357,-500.0,0.00046027,4]
[313140017,1706797843366,-677.19156371,0.00046351,5]
[313140018,1706797843376,-150.0,0.00046503,2]
[313140019,1706797843386,-1006.6,0.00046575,4]
[313140021,1706797843396,-598.27,0.00046575,4]
[313140022,1706797843406,-500.0,0.00046575,4]
[313140024,1706797843416,-500.0,0.00046575,4]
[313140026,1706797843426,-500.0,0.00046575,4]
[313140027,1706797843436,-336.0,0.000467,30]
[313140029,1706797843446,-152.60302258,0.00046859,2]
[313140031,1706797843456,-1061.74793901,0.00046867,12]
[313140032,1706797843466,-200.0,0.00046987,37]
[313140033,1706797843476,-1006.6,0.00047123,4]
[313140034,1706797843486,-598.27,0.00047123,4]
[313140035,1706797843496,-500.0,0.00047123,4]
[313140036,1706797843506,-500.0,0.00047123,4]
[313140037,1706797843762,-500.0,0.00047123,4]
[313140038,1706797843772,-1000.0,0.000474,2]
[313140039,1706797843781,-159.52,0.00047437,2]
[313140040,1706797843790,-1245.33,0.00047572,15]
[313140041,1706797843799,-150.0,0.00047585,2]
[313140042,1706797843807,-59277.0,0.00047617,30]
[313140043,1706797843819,-282.34113377,0.00047641,43]
[313140044,1706797843829,-1006.6,0.00047671,4]
[313140045,1706797843838,-598.27,0.00047671,4]
[313140046,1706797843848,-500.0,0.00047671,4]
[313140047,1706797843857,-386.21183516,0.00047671,4]
[313140048,1706797843866,-500.0,0.00047671,4]
[313140049,1706797843875,-151.0,0.00047781,2]
[313140050,1706797843884,-250.49088,0.00047781,2]
[313140051,1706797843895,-336.0,0.000478,30]
[313140052,1706797843905,-677.19156371,0.0004793,5]
[313140053,1706797843914,-666.0,0.00047945,2]
[313140054,1706797843924,-500.0,0.00047945,30]
[313140055,1706797843934,-200.0,0.00047987,40]
[313140056,1706797843943,-200.0,0.00047987,38]
[313140057,1706797843954,-150.0,0.00047999,15]
[313140058,1706797843963,-800.0,0.00048,4]
[313140059,1706797843973,-390.67762576,0.00048,30]
[313140060,1706797843981,-15115.29828629,0.00048,14]
[313140061,1706797843991,-6850.2749159,0.00048,14]
[313140062,1706797844001,-1799.05,0.00048009,5]
[313140063,1706797844010,-248.71012914,0.00048035,30]
[313140064,1706797844020,-156.08841774,0.00048067,30]
[313140065,1706797844030,-248.71012914,0.00048095,30]
[313140066,1706797844039,-59277.0,0.00048108,30]
[313140067,1706797844049,-171.77346967,0.00048157,30]
[313140068,1706797844059,-156.80178581,0.00048157,30]
[313140069,1706797844071,-248.71012914,0.00048158,30]
[313140070,1706797844081,-151.51747848,0.00048165,30]
[313140071,1706797844090,-154.08981613,0.00048171,30]
[313140072,1706797844099,-156.08841774,0.00048181,30]
[313140073,1706797844109,-156.08841774,0.00048199,30]
[313140074,1706797844118,-151.51747848,0.00048202,30]
[313140075,1706797844127,-1006.6,0.00048219,4]
[313140076,1706797844137,-598.27,0.00048219,4]
[313140077,1706797844146,-500.0,0.00048219,4]
[313140078,1706797844155,-500.0,0.00048219,4]
[313140079,1706797844164,-156.08841774,0.00048222,30]
[313140080,1706797844176,-248.71012914,0.00048227,30]
[313140081,1706797844185,-171.77346967,0.00048249,30]
[313140082,1706797844193,-248.71012914,0.00048252,30]
[313140083,1706797844201,-156.80178581,0.00048264,30]
[313140084,1706797844211,-156.80178581,0.00048274,30]
[313140085,1706797844220,-171.77346967,0.00048286,30]
[313140086,1706797844229,-155.66144457,0.00048312,30]
[313140087,1706797844239,-156.08841774,0.00048338,30]
[313140088,1706797844251,-155.66144457,0.00048344,30]
[313140089,1706797844260,-150.88124633,0.00048348,30]
[313140090,1706797844270,-155.66144457,0.00048372,30]
[313140091,1706797844279,-159.13632681,0.00048385,30]
[313140092,1706797844289,-151.7571739,0.00048398,30]
[313140093,1706797844298,-150.88124633,0.00048415,30]
[313140094,1706797844307,-248.71012914,0.00048417,30]
[313140095,1706797844317,-150.88124633,0.00048433,30]
[313140096,1706797844327,-154.08981613,0.00048453,30]
[313140097,1706797844336,-156.08841774,0.00048464,30]
[313140098,1706797844346,-155.66144457,0.00048499,30]
[313140099,1706797844355,-248.71012914,0.00048551,30]
[313140100,1706797844365,-248.71012914,0.00048571,30]
[313140101,1706797844375,-151.51747848,0.0004858,30]
[313140102,1706797844384,-302.0,0.00048584,4]
[313140103,1706797844394,-156.80178581,0.00048591,30]
[313140104,1706797844403,-59277.0,0.00048599,30]
[313140105,1706797844413,-151.51747848,0.000486,30]
[313140106,1706797844423,-150.88124633,0.0004861,30]
[313140107,1706797844432,-150.88124633,0.00048647,30]
[313140108,1706797844442,-150.0,0.00048666,2]
[313140109,1706797844451,-171.77346967,0.00048684,30]
[313140110,1706797844461,-1719.0,0.000487,117]
[313140111,1706797844470,-154.08981613,0.000487,30]
[313140112,1706797844480,-151.51747848,0.00048705,30]
[313140113,1706797844489,-154.08981613,0.00048709,30]
[313140114,1706797844498,-154.08981613,0.00048715,30]